[Event "New York Summer GM-A 2022"]
[Site "New York"]
[Date "2022.07.11"]
[Round "8.1"]
[White "Zhou, Liran"]
[Black "Williams, Justus"]
[Result "1/2-1/2"]
[ECO "B40"]
[WhiteElo "2393"]
[BlackElo "2390"]
[Annotator "ChessBase"]
[PlyCount "131"]
[EventDate "2022.07.08"]
[EventType "tourn"]
[EventCountry "USA"]
[SourceTitle "playchess.com"]
[Source "ChessBase"]
[SourceQuality "1"]
[TimeControl "5400+30"]

1. e4 {[%emt 0:04:57]} c5 {[%emt 0:07:53]} 2. Nf3 {[%emt 0:00:12]} e6 {[%emt 0:00:06]} 3. g3 {[%emt 0:00:06]} Nc6 {[%emt 0:00:11]} 4. Bg2 {[%emt 0:00:06]} Nf6 {[%emt 0:00:10]} 5. Qe2 {[%emt 0:00:09]} e5 {[%emt 0:00:27]} 6. O-O {[%emt 0:01:16]} d6 {[%emt 0:01:09]} 7. c3 {[%emt 0:02:33]} Be7 {[%emt 1:24:04]} 8. a4 {[%emt 0:04:10]} O-O {[%emt 0:00:00]} 9. Na3 {[%emt 0:00:23]} Be6 {[%emt 0:00:00]} 10. d3 {[%emt 0:02:22]} Na5 {[%emt 0:00:00]} 11. Nd2 {[%emt 0:02:36]} Qd7 {[%emt 0:00:00]} 12. Nac4 {[%emt 0:00:53]} Nc6 {[%emt 0:00:00]} 13. Ne3 {[%emt 0:14:12]} d5 {[%emt 0:00:00]} 14. exd5 {[%emt 0:08:06]} Nxd5 {[%emt 0:00:00]} 15. Ndc4 {[%emt 0:02:28]} Nxe3 {[%emt 0:00:00]} 16. Bxe3 {[%emt 0:02:33]} Rfd8 {[%emt 0:00:00]} 17. Rfd1 {[%emt 0:01:49]} Bg4 {[%emt 0:00:00]} 18. Bf3 {[%emt 0:02:38]} Bxf3 {[%emt 0:00:00]} 19. Qxf3 {[%emt 0:00:06]} Qe6 {[%emt 0:00:00]} 20. Rd2 {[%emt 0:10:26]} Rd7 {[%emt 0:00:00]} 21. Rad1 {[%emt 0:03:00]} Rad8 {[%emt 0:00:00]} 22. Qg2 {[%emt 0:06:12]} Bf8 {[%emt 0:00:00]} 23. f4 {[%emt 0:03:14]} exf4 {[%emt 0:00:00]} 24. Bxf4 {[%emt 0:00:33]} f6 {[%emt 0:00:00]} 25. Qf3 {[%emt 0:04:46]} Ne7 {[%emt 0:00:00]} 26. Be3 {[%emt 0:02:28]} Nd5 {[%emt 0:00:00]} 27. Bf2 {[%emt 0:00:54]} Qa6 {[%emt 0:00:00]} 28. a5 {[%emt 0:01:18]} Qb5 {[%emt 0:00:00]} 29. Qf5 {[%emt 0:04:14]} Nc7 {[%emt 0:00:00]} 30. Re1 {[%emt 0:02:42]} Qc6 {[%emt 0:00:00]} 31. Re3 {[%emt 0:03:49]} g6 {[%emt 0:00:00]} 32. Qh3 {[%emt 0:04:01]} Rd5 {[%emt 0:00:00]} 33. Rd1 {[%emt 0:00:37]} Qa4 {[%emt 0:00:00]} 34. Qf1 {[%emt 0:01:05]} Qd7 {[%emt 0:00:00]} 35. Rf3 {[%emt 0:02:12]} Qc6 {[%emt 0:00:00]} 36. Be3 {[%emt 0:01:32]} Bg7 {[%emt 0:00:00]} 37. Bf4 {[%emt 0:00:44]} Ne6 {[%emt 0:00:00]} 38. Re1 {[%emt 0:00:16]} Qd7 {[%emt 0:01:48]} 39. Rfe3 {[%emt 0:01:23]} Nxf4 {[%emt 0:01:59]} 40. gxf4 {[%emt 0:00:08]} Bf8 {[%emt 0:00:43]} 41. Rd1 {[%emt 0:01:07]} Bh6 {[%emt 0:00:33]} 42. Rf3 {[%emt 0:00:36]} Qa4 {[%emt 0:03:17]} 43. Re1 {[%emt 0:00:26]} f5 {[%emt 0:03:02]} 44. Re7 {[%emt 0:00:54]} R5d7 {[%emt 0:03:01]} 45. Rfe3 {[%emt 0:00:39]} Bf8 {[%emt 0:01:20]} 46. Re8 {[%emt 0:01:02]} Qc2 {[%emt 0:00:54]} 47. Rxd8 {[%emt 0:01:01]} Rxd8 {[%emt 0:00:01]} 48. Qf3 {[%emt 0:00:18]} Bh6 {[%emt 0:01:22]} 49. Kh1 {[%emt 0:01:04]} b5 {[%emt 0:01:43]} 50. axb6 {[%emt 0:00:04]} axb6 {[%emt 0:00:03]} 51. Qc6 {[%emt 0:00:51]} Qd1+ {[%emt 0:01:10]} 52. Kg2 {[%emt 0:00:05]} Qg4+ {[%emt 0:00:18]} 53. Kh1 {[%emt 0:00:31]} Qd1+ {[%emt 0:01:02]} 54. Kg2 {[%emt 0:00:03]} Qg4+ {[%emt 0:00:23]} 55. Kf1 {[%emt 0:01:35]} Bxf4 {[%emt 0:00:44]} 56. Qe6+ {[%emt 0:00:27]} Kg7 {[%emt 0:00:01]} 57. h3 {[%emt 0:00:36]} Qd1+ {[%emt 0:00:37]} 58. Kg2 {[%emt 0:00:10]} Bxe3 {[%emt 0:00:45]} 59. Qe7+ {[%emt 0:00:06]} Kh6 {[%emt 0:00:02]} 60. Nxe3 {[%emt 0:00:31]} Qe2+ {[%emt 0:00:56]} 61. Kg1 {[%emt 0:00:13]} Qe1+ {[%emt 0:00:14]} 62. Kg2 {[%emt 0:00:04]} Qe2+ {[%emt 0:00:59]} 63. Kg1 {[%emt 0:00:03]} Qf3 {[%emt 0:00:20]} 64. Qh4+ {[%emt 0:00:56]} Kg7 {[%emt 0:00:02]} 65. Qe7+ {[%emt 0:00:18]} Kh6 {[%emt 0:00:01]} 66. Qh4+ {[%emt 0:00:09]} 1/2-1/2

[Event "New York Summer GM-A 2022"]
[Site "New York"]
[Date "2022.07.11"]
[Round "8.2"]
[White "Lu, Maximillian"]
[Black "Ostrovskiy, Aleksandr"]
[Result "1-0"]
[ECO "E11"]
[WhiteElo "2398"]
[BlackElo "2392"]
[Annotator "ChessBase"]
[PlyCount "67"]
[EventDate "2022.07.08"]
[EventType "tourn"]
[EventCountry "USA"]
[SourceTitle "playchess.com"]
[Source "ChessBase"]
[SourceQuality "1"]
[TimeControl "5400+30"]

1. d4 {[%emt 0:00:02]} Nf6 {[%emt 0:06:58]} 2. c4 {[%emt 0:00:10]} e6 {[%emt 0:00:04]} 3. Nf3 {[%emt 0:00:14]} Bb4+ {[%emt 0:00:05]} 4. Nbd2 {[%emt 0:02:34]} O-O {[%emt 0:00:21]} 5. a3 {[%emt 0:00:26]} Be7 {[%emt 0:00:06]} 6. e4 {[%emt 0:01:09]} d6 {[%emt 0:00:29]} 7. b4 {[%emt 0:00:54]} e5 {[%emt 0:00:17]} 8. d5 {[%emt 0:00:37]} a5 {[%emt 0:23:05]} 9. Bb2 {[%emt 0:00:34]} axb4 {[%emt 0:01:15]} 10. axb4 {[%emt 0:00:02]} Rxa1 {[%emt 0:00:03]} 11. Qxa1 {[%emt 0:01:06]} Nh5 {[%emt 0:05:26]} 12. h3 {[%emt 0:25:22]} g6 {[%emt 0:04:04]} 13. g3 {[%emt 0:00:30]} f5 {[%emt 0:04:17]} 14. exf5 {[%emt 0:07:49]} gxf5 {[%emt 0:00:19]} 15. c5 {[%emt 0:00:46]} Nd7 {[%emt 0:06:02]} 16. Bc4 {[%emt 0:06:17]} e4 {[%emt 0:17:02]} 17. c6 {[%emt 0:21:49]} Nb6 {[%emt 0:17:49]} 18. Nd4 {[%emt 0:00:40]} Nxc4 {[%emt 0:00:40]} 19. Nxc4 {[%emt 0:00:17]} Qe8 {[%emt 0:01:39]} 20. cxb7 {[%emt 0:18:28]} Bxb7 {[%emt 0:00:08]} 21. Ne3 {[%emt 0:00:02]} Bc8 {[%emt 0:08:09]} 22. g4 {[%emt 0:05:33]} fxg4 {[%emt 0:00:37]} 23. Nxg4 {[%emt 0:00:43]} Bxg4 {[%emt 0:01:31]} 24. Rg1 {[%emt 0:00:13]} Nf6 {[%emt 0:00:24]} 25. Nf5 {[%emt 0:02:29]} h5 {[%emt 0:00:38]} 26. hxg4 {[%emt 0:01:52]} hxg4 {[%emt 0:01:15]} 27. Qd1 {[%emt 0:02:40]} e3 {[%emt 0:00:43]} 28. Rxg4+ {[%emt 0:00:34]} Kh8 {[%emt 0:00:32]} 29. Rh4+ {[%emt 0:00:31]} Kg8 {[%emt 0:00:01]} 30. Rg4+ {[%emt 0:00:32]} Kh8 {[%emt 0:00:28]} 31. Rh4+ {[%emt 0:00:31]} Kg8 {[%emt 0:00:01]} 32. Qf3 {[%emt 0:00:24]} exf2+ {[%emt 0:00:09]} 33. Kxf2 {[%emt 0:00:37]} Qa4 {[%emt 0:01:34]} 34. Qg3+ {[%emt 0:00:28]} 1-0

[Event "New York Summer GM-A 2022"]
[Site "New York"]
[Date "2022.07.11"]
[Round "8.3"]
[White "Korley, Kassa"]
[Black "Song, Michael"]
[Result "1-0"]
[ECO "A05"]
[WhiteElo "2421"]
[BlackElo "2409"]
[Annotator "ChessBase"]
[PlyCount "59"]
[EventDate "2022.07.08"]
[EventType "tourn"]
[EventCountry "USA"]
[SourceTitle "playchess.com"]
[Source "ChessBase"]
[SourceQuality "1"]
[TimeControl "5400+30"]

1. Nf3 {[%emt 0:00:03]} Nf6 {[%emt 0:02:34]} 2. g3 {[%emt 0:00:08]} b5 {[%emt 0:00:41]} 3. Bg2 {[%emt 0:00:05]} Bb7 {[%emt 0:00:12]} 4. O-O {[%emt 0:00:05]} g6 {[%emt 0:00:53]} 5. Na3 {[%emt 0:11:00]} c6 {[%emt 0:06:07]} 6. d3 {[%emt 0:18:07]} d6 {[%emt 0:03:14]} 7. Bd2 {[%emt 0:07:00]} Bg7 {[%emt 0:01:19]} 8. c4 {[%emt 0:00:12]} a6 {[%emt 0:00:41]} 9. Rc1 {[%emt 0:17:46]} O-O {[%emt 0:02:16]} 10. Qc2 {[%emt 0:08:37]} Nbd7 {[%emt 0:12:48]} 11. Nd4 {[%emt 0:01:10]} Rc8 {[%emt 0:02:40]} 12. Nb3 {[%emt 0:00:07]} Ba8 {[%emt 0:03:07]} 13. Ba5 {[%emt 0:00:49]} Qe8 {[%emt 0:00:15]} 14. Qd2 {[%emt 0:01:00]} bxc4 {[%emt 0:05:15]} 15. Nxc4 {[%emt 0:00:28]} c5 {[%emt 0:03:28]} 16. e4 {[%emt 0:01:39]} d5 {[%emt 0:02:09]} 17. exd5 {[%emt 0:00:14]} Bxd5 {[%emt 0:00:13]} 18. Rfe1 {[%emt 0:00:05]} Rc6 {[%emt 0:00:49]} 19. Bxd5 {[%emt 0:02:38]} Nxd5 {[%emt 0:00:10]} 20. d4 {[%emt 0:00:04]} e6 {[%emt 0:03:47]} 21. dxc5 {[%emt 0:03:10]} Nxc5 {[%emt 0:00:16]} 22. Nd4 {[%emt 0:00:35]} Bxd4 {[%emt 0:12:11]} 23. Qxd4 {[%emt 0:00:03]} Qc8 {[%emt 0:00:07]} 24. Bd2 {[%emt 0:04:32]} Re8 {[%emt 0:04:42]} 25. Ne5 {[%emt 0:01:04]} Rc7 {[%emt 0:00:07]} 26. Ng4 {[%emt 0:00:12]} h5 {[%emt 0:07:12]} 27. Bh6 {[%emt 0:04:44]} f5 {[%emt 0:00:01]} 28. Nf6+ {[%emt 0:00:18]} Nxf6 {[%emt 0:00:28]} 29. Qxf6 {[%emt 0:00:04]} Kh7 {[%emt 0:00:52]} 30. Bf4 {[%emt 0:00:49]} 1-0

[Event "New York Summer GM-A 2022"]
[Site "New York"]
[Date "2022.07.12"]
[Round "9.3"]
[White "Song, Michael"]
[Black "Kaliksteyn, Alexander"]
[Result "1/2-1/2"]
[ECO "B20"]
[WhiteElo "2409"]
[BlackElo "2380"]
[Annotator "ChessBase"]
[PlyCount "78"]
[EventDate "2022.07.08"]
[EventType "tourn"]
[EventCountry "USA"]
[SourceTitle "playchess.com"]
[Source "ChessBase"]
[SourceQuality "1"]
[TimeControl "5400+30"]

1. f4 {[%emt 0:00:04]} c5 {[%emt 0:00:14]} 2. Nf3 {[%emt 0:00:24]} g6 {[%emt 0:00:18]} 3. g3 {[%emt 0:00:18]} Bg7 {[%emt 0:00:05]} 4. Bg2 {[%emt 0:00:12]} Nc6 {[%emt 0:00:41]} 5. d3 {[%emt 0:01:43]} e6 {[%emt 0:00:45]} 6. O-O {[%emt 0:00:27]} Nge7 {[%emt 0:00:15]} 7. e4 {[%emt 0:07:13]} O-O {[%emt 0:00:40]} 8. c3 {[%emt 0:00:33]} d6 {[%emt 0:02:00]} 9. Be3 {[%emt 0:03:00]} b5 {[%emt 0:17:32]} 10. d4 {[%emt 0:01:33]} cxd4 {[%emt 0:01:53]} 11. cxd4 {[%emt 0:00:03]} Bb7 {[%emt 0:07:19]} 12. Nbd2 {[%emt 0:02:36]} Rc8 {[%emt 0:01:22]} 13. Bf2 {[%emt 0:00:09]} Na5 {[%emt 0:06:10]} 14. b3 {[%emt 0:09:35]} Qd7 {[%emt 0:02:12]} 15. Bh3 {[%emt 0:06:12]} f5 {[%emt 0:08:59]} 16. Re1 {[%emt 0:02:03]} Nac6 {[%emt 0:05:34]} 17. a3 {[%emt 0:01:44]} a6 {[%emt 0:03:02]} 18. Ra2 {[%emt 0:05:26]} Nd8 {[%emt 0:04:19]} 19. Qe2 {[%emt 0:06:28]} Re8 {[%emt 0:08:59]} 20. d5 {[%emt 0:05:54]} fxe4 {[%emt 0:03:39]} 21. dxe6 {[%emt 0:00:24]} Nxe6 {[%emt 0:00:05]} 22. Nxe4 {[%emt 0:00:36]} Nf5 {[%emt 0:00:19]} 23. Qd3 {[%emt 0:09:16]} Qc6 {[%emt 0:05:25]} 24. Rae2 {[%emt 0:11:09]} Nc5 {[%emt 0:00:13]} 25. Bxc5 {[%emt 0:00:04]} dxc5 {[%emt 0:00:50]} 26. Bg2 {[%emt 0:00:08]} c4 {[%emt 0:05:04]} 27. bxc4 {[%emt 0:01:34]} bxc4 {[%emt 0:00:04]} 28. Qc2 {[%emt 0:00:15]} Rxe4 {[%emt 0:08:44]} 29. Rxe4 {[%emt 0:00:29]} Qc5+ {[%emt 0:00:07]} 30. Kh1 {[%emt 0:00:54]} Bxe4 {[%emt 0:00:06]} 31. Qxe4 {[%emt 0:00:56]} c3 {[%emt 0:03:29]} 32. Ng5 {[%emt 0:08:10]} h6 {[%emt 0:01:24]} 33. Ne6 {[%emt 0:02:41]} Qd6 {[%emt 0:02:58]} 34. Qb7 {[%emt 0:02:53]} Rb8 {[%emt 0:00:09]} 35. Qd5 {[%emt 0:08:09]} Qxd5 {[%emt 0:00:12]} 36. Bxd5 {[%emt 0:00:02]} Rc8 {[%emt 0:00:36]} 37. g4 {[%emt 0:03:48]} c2 {[%emt 0:02:38]} 38. Nd4+ {[%emt 0:00:28]} Kf8 {[%emt 0:00:24]} 39. Nxc2 {[%emt 0:00:07]} Rxc2 {[%emt 0:00:07]} 1/2-1/2

[Event "New York Summer GM-A 2022"]
[Site "New York"]
[Date "2022.07.11"]
[Round "9.4"]
[White "Ostrovskiy, Aleksandr"]
[Black "Korley, Kassa"]
[Result "1/2-1/2"]
[ECO "C42"]
[WhiteElo "2392"]
[BlackElo "2421"]
[Annotator "ChessBase"]
[PlyCount "31"]
[EventDate "2022.07.08"]
[EventType "tourn"]
[EventCountry "USA"]
[SourceTitle "playchess.com"]
[Source "ChessBase"]
[SourceQuality "1"]
[TimeControl "5400+30"]

1. e4 {[%emt 1:31:00]} e5 {[%emt 1:31:00]} 2. Nf3 {[%emt 0:00:30]} Nf6 {[%emt 0:00:30]} 3. Nxe5 {[%emt 0:00:30]} d6 {[%emt 0:00:30]} 4. Nf3 {[%emt 0:00:30]} Nxe4 {[%emt 0:00:30]} 5. Nc3 {[%emt 0:00:30]} Nxc3 {[%emt 0:00:30]} 6. dxc3 {[%emt 0:00:30]} Be7 {[%emt 0:00:30]} 7. Be3 {[%emt 0:00:30]} O-O {[%emt 0:00:30]} 8. Qd2 {[%emt 0:00:30]} Nd7 {[%emt 0:00:30]} 9. O-O-O {[%emt 0:00:30]} Nf6 {[%emt 0:00:30]} 10. Bd3 {[%emt 0:00:30]} c5 {[%emt 0:00:30]} 11. Bg5 {[%emt 0:00:30]} Be6 {[%emt 0:00:30]} 12. Qf4 {[%emt 0:00:30]} Re8 {[%emt 0:00:30]} 13. Bb5 {[%emt 0:00:30]} Rf8 {[%emt 0:00:30]} 14. Bd3 {[%emt 0:00:30]} Re8 {[%emt 0:00:30]} 15. Bb5 {[%emt 0:00:30]} Rf8 {[%emt 0:00:30]} 16. Bd3 {[%emt 0:00:30]} 1/2-1/2

[Event "New York Summer GM-A 2022"]
[Site "New York"]
[Date "2022.07.12"]
[Round "9.5"]
[White "Williams, Justus"]
[Black "Lu, Maximillian"]
[Result "0-1"]
[ECO "E12"]
[WhiteElo "2390"]
[BlackElo "2398"]
[Annotator "ChessBase"]
[PlyCount "134"]
[EventDate "2022.07.08"]
[EventType "tourn"]
[EventCountry "USA"]
[SourceTitle "playchess.com"]
[Source "ChessBase"]
[SourceQuality "1"]
[TimeControl "5400+30"]

1. Nf3 {[%emt 0:00:34]} Nf6 {[%emt 0:00:48]} 2. c4 {[%emt 0:00:07]} b6 {[%emt 0:01:41]} 3. d4 {[%emt 0:03:29]} Bb7 {[%emt 0:00:23]} 4. Nc3 {[%emt 0:00:23]} e6 {[%emt 0:00:07]} 5. a3 {[%emt 0:00:39]} d5 {[%emt 0:00:02]} 6. Bg5 {[%emt 0:00:48]} Be7 {[%emt 0:00:12]} 7. e3 {[%emt 0:00:38]} O-O {[%emt 0:01:58]} 8. Rc1 {[%emt 0:00:38]} h6 {[%emt 0:01:24]} 9. Bh4 {[%emt 0:02:59]} Nbd7 {[%emt 0:06:41]} 10. cxd5 {[%emt 0:02:38]} exd5 {[%emt 0:00:18]} 11. Bd3 {[%emt 0:00:29]} c5 {[%emt 0:08:23]} 12. dxc5 {[%emt 0:08:44]} bxc5 {[%emt 0:01:53]} 13. O-O {[%emt 0:08:14]} Rc8 {[%emt 0:06:13]} 14. Bf5 {[%emt 0:07:36]} g6 {[%emt 0:03:45]} 15. Bxf6 {[%emt 0:06:43]} Bxf6 {[%emt 0:00:37]} 16. Bh3 {[%emt 0:00:58]} Rb8 {[%emt 0:21:14]} 17. Nxd5 {[%emt 0:02:15]} Bxb2 {[%emt 0:03:09]} 18. Rc2 {[%emt 0:01:57]} Nb6 {[%emt 0:10:12]} 19. Nf4 {[%emt 0:02:44]} Qxd1 {[%emt 0:02:04]} 20. Rxd1 {[%emt 0:00:03]} Rfd8 {[%emt 0:03:05]} 21. Rb1 {[%emt 0:10:42]} Na4 {[%emt 0:01:48]} 22. Nd2 {[%emt 0:03:58]} Bc3 {[%emt 0:10:03]} 23. Nf1 {[%emt 0:05:30]} Be4 {[%emt 0:00:18]} 24. Rxb8 {[%emt 0:00:06]} Rxb8 {[%emt 0:00:01]} 25. Rc1 {[%emt 0:00:42]} Rb1 {[%emt 0:05:43]} 26. Rxb1 {[%emt 0:00:46]} Bxb1 {[%emt 0:00:02]} 27. Nd5 {[%emt 0:03:08]} Ba5 {[%emt 0:03:49]} 28. Bd7 {[%emt 0:00:59]} Nb2 {[%emt 0:00:21]} 29. Ng3 {[%emt 0:05:40]} Bd3 {[%emt 0:00:14]} 30. Ne7+ {[%emt 0:00:55]} Kf8 {[%emt 0:01:04]} 31. Nc6 {[%emt 0:00:10]} Be1 {[%emt 0:06:05]} 32. Bg4 {[%emt 0:06:36]} c4 {[%emt 0:01:08]} 33. Be2 {[%emt 0:01:46]} c3 {[%emt 0:01:30]} 34. Bxd3 {[%emt 0:00:39]} Nxd3 {[%emt 0:00:01]} 35. Nd4 {[%emt 0:00:09]} Bxf2+ {[%emt 0:00:06]} 36. Kf1 {[%emt 0:00:02]} Bxe3 {[%emt 0:00:27]} 37. Nc2 {[%emt 0:00:01]} Bf4 {[%emt 0:00:49]} 38. Ne2 {[%emt 0:00:29]} Be5 {[%emt 0:00:13]} 39. Ned4 {[%emt 0:00:30]} Bxh2 {[%emt 0:00:24]} 40. Nb5 {[%emt 0:00:01]} a6 {[%emt 0:00:38]} 41. Nxc3 {[%emt 0:00:02]} Bd6 {[%emt 0:00:24]} 42. Ke2 {[%emt 0:00:27]} Ne5 {[%emt 0:00:21]} 43. a4 {[%emt 0:00:45]} f5 {[%emt 0:00:11]} 44. Nd5 {[%emt 0:00:10]} Kf7 {[%emt 0:00:30]} 45. Nd4 {[%emt 0:00:06]} Nd7 {[%emt 0:00:30]} 46. a5 {[%emt 0:00:41]} Ne5 {[%emt 0:00:14]} 47. Nb6 {[%emt 0:00:54]} Bb4 {[%emt 0:01:00]} 48. Nb3 {[%emt 0:00:02]} Nc6 {[%emt 0:00:30]} 49. Nc4 {[%emt 0:00:09]} Ke6 {[%emt 0:00:07]} 50. Kd3 {[%emt 0:00:21]} g5 {[%emt 0:01:15]} 51. Ne3 {[%emt 0:02:29]} f4 {[%emt 0:00:46]} 52. Nc2 {[%emt 0:00:01]} Kd5 {[%emt 0:00:59]} 53. Nxb4+ {[%emt 0:00:58]} Nxb4+ {[%emt 0:00:02]} 54. Ke2 {[%emt 0:00:06]} g4 {[%emt 0:00:34]} 55. Nd2 {[%emt 0:00:01]} Nc6 {[%emt 0:00:31]} 56. g3 {[%emt 0:00:06]} fxg3 {[%emt 0:00:30]} 57. Nf1 {[%emt 0:00:02]} Ke4 {[%emt 0:00:24]} 58. Nxg3+ {[%emt 0:00:12]} Kf4 {[%emt 0:00:00]} 59. Nh5+ {[%emt 0:00:19]} Kg5 {[%emt 0:00:01]} 60. Ng7 {[%emt 0:00:06]} Nxa5 {[%emt 0:00:13]} 61. Ne6+ {[%emt 0:00:01]} Kh4 {[%emt 0:00:19]} 62. Nc5 {[%emt 0:00:07]} Kh3 {[%emt 0:00:28]} 63. Kf2 {[%emt 0:00:21]} Kh2 {[%emt 0:00:27]} 64. Ne4 {[%emt 0:00:04]} h5 {[%emt 0:00:14]} 65. Ng3 {[%emt 0:01:33]} h4 {[%emt 0:00:13]} 66. Nf1+ {[%emt 0:00:17]} Kh3 {[%emt 0:00:17]} 67. Ne3 {[%emt 0:00:13]} Nb3 {[%emt 0:00:46]} 0-1